fUSD/lending_fUSD_20250526
["ID","MTS","AMOUNT","RATE_DAILY","PERIOD"]
[362381832,1748237439957,-156.692744,0.00019994,2]
[362381834,1748237439970,-443.44922869,0.00019994,2]
[362381836,1748237439979,-420.0,0.00019994,2]
[362381838,1748237439989,-420.0,0.00019994,2]
[362381840,1748237439998,-290.7,0.00019994,2]
[362381842,1748237440007,-263.59798469,0.00019994,2]
[362381845,1748237440016,-342.86911917,0.00019994,2]
[362381847,1748237440026,-420.0,0.00019994,2]
[362381849,1748237440035,-425.54716039,0.00019994,2]
[362381851,1748237440046,-436.96833602,0.00019994,2]
[362381853,1748237440055,-448.26639161,0.00019994,2]
[362381855,1748237440064,-449.91434779,0.00019994,2]
[362381857,1748237440074,-430.94847076,0.00019994,2]
[362381859,1748237440084,-432.98333033,0.00019994,2]
[362381860,1748237440094,-420.0,0.00019994,2]
[362381862,1748237440103,-420.0,0.00019994,2]
[362381864,1748237440112,-436.05417063,0.00019994,2]
[362381866,1748237440122,-420.0,0.00019994,2]
[362381868,1748237440131,-420.0,0.00019994,2]
[362381870,1748237440140,-424.70035031,0.00019994,2]
[362381872,1748237440149,-420.0,0.00019994,2]
[362381874,1748237440159,-420.0,0.00019994,2]
[362381876,1748237440168,-430.35623554,0.00019994,2]
[362381878,1748237440176,-441.26369032,0.00019994,2]
[362381880,1748237440186,-420.0,0.00019994,2]
[362381882,1748237440195,-420.0,0.00019994,2]
[362381884,1748237440204,-428.08920239,0.00019994,2]
[362381886,1748237440213,-460.72516754,0.00019994,2]
[362381888,1748237440222,-432.3573644,0.00019994,2]
[362381890,1748237440231,-427.75861846,0.00019994,2]
[362381892,1748237440240,-433.72059028,0.00019994,2]
[362381894,1748237440250,-441.57861787,0.00019994,2]
[362381896,1748237440259,-432.42816972,0.00019994,2]
[362381897,1748237440269,-420.0,0.00019994,2]
[362381899,1748237440278,-450.63840925,0.00019994,2]
[362381901,1748237440287,-420.0,0.00019994,2]
[362381903,1748237440296,-440.51243059,0.00019994,2]
[362381905,1748237440306,-420.0,0.00019994,2]
[362381907,1748237440315,-456.35941997,0.00019994,2]
[362381909,1748237440324,-435.41877038,0.00019994,2]
[362381910,1748237440334,-420.0,0.00019994,2]
[362381912,1748237440343,-420.0,0.00019994,2]
[362381914,1748237440352,-561.78950863,0.00019994,2]
[362381916,1748237440362,-437.08309874,0.00019994,2]
[362381918,1748237440371,-420.0,0.00019994,2]
[362381920,1748237440380,-500.0,0.00019994,2]
[362381922,1748237440389,-420.0,0.00019994,2]
[362381924,1748237440398,-500.02545587,0.00019994,2]
[362381926,1748237440408,-389.78425462,0.00019994,2]
[362381928,1748237440417,-442.13225717,0.00019994,2]
[362381930,1748237440426,-420.0,0.00019994,2]
[362381932,1748237440435,-394.91013198,0.00019994,2]
[362381934,1748237440444,-420.0,0.00019994,2]
[362381936,1748237440454,-420.0,0.00019994,2]
[362381937,1748237440463,-270.82752676,0.00019994,2]
[362381939,1748237440472,-420.0,0.00019994,2]
[362381941,1748237440481,-420.0,0.00019994,2]
[362381943,1748237440490,-420.0,0.00019994,2]
[362381945,1748237440499,-517.81715654,0.00019994,2]
[362381948,1748237440513,-260.78237454,0.00019994,2]
[362381949,1748237440522,-432.31350606,0.00019994,2]
[362381951,1748237440531,-428.93068064,0.00019994,2]
[362381953,1748237440540,-445.78996382,0.00019994,2]
[362381955,1748237440549,-420.0,0.00019994,2]
[362381957,1748237440559,-384.86827201,0.00019994,2]
[362381959,1748237440568,-420.0,0.00019994,2]
[362381961,1748237440577,-500.0,0.00019994,2]
[362381963,1748237440586,-437.46020382,0.00019994,2]
[362381965,1748237440595,-420.0,0.00019994,2]
[362381967,1748237440605,-420.0,0.00019994,2]
[362381969,1748237440614,-420.0,0.00019994,2]
[362381971,1748237440623,-427.18045898,0.00019994,2]
[362381973,1748237440632,-434.47766107,0.00019994,2]
[362381975,1748237440642,-428.25233487,0.00019994,2]
[362381977,1748237440651,-398.16574508,0.00019994,2]
[362381979,1748237440660,-414.35939277,0.00019994,2]
[362381981,1748237440669,-420.0,0.00019994,2]
[362381983,1748237440679,-303.92029762,0.00019994,2]
[362381985,1748237440688,-648.12267154,0.00019994,2]
[362381987,1748237440698,-439.06090431,0.00019994,2]
[362381989,1748237440707,-376.99,0.00019994,2]
[362381991,1748237440716,-447.9577405,0.00019994,2]
[362381993,1748237440725,-420.0,0.00019994,2]
[362381995,1748237440735,-164.800083,0.00019997,2]
[362381996,1748237440744,-156.692744,0.00019997,2]
[362381998,1748237440753,-158.923491,0.00019997,2]
[362382000,1748237440763,-156.692744,0.00019998,2]
[362382002,1748237440773,-164.800083,0.00019999,2]
[362382004,1748237440782,-164.800083,0.00019999,2]
[362382006,1748237440792,-548.12604793,0.00019999,2]
[362382008,1748237440801,-156.692744,0.00019999,2]
[362382010,1748237440810,-156.692744,0.00019999,2]
[362382012,1748237440820,-156.692744,0.00019999,2]
[362382014,1748237440830,-156.692744,0.00019999,2]
[362382016,1748237440839,-156.692744,0.00019999,2]
[362382018,1748237440849,-156.692744,0.00019999,2]
[362382020,1748237440858,-156.692744,0.00019999,2]
[362382022,1748237440868,-156.692744,0.00019999,2]
[362382024,1748237440877,-153.302406,0.00019999,2]
[362382026,1748237440886,-210.46197781,0.00019999,2]
[362382028,1748237440896,-420.0,0.00019999,2]
[362382029,1748237440905,-420.0,0.00019999,2]
[362382031,1748237440915,-420.0,0.00019999,2]
[362382033,1748237440924,-422.63850911,0.00019999,2]
[362382035,1748237440933,-158.923491,0.00019999,2]
[362382037,1748237440943,-420.0,0.00019999,2]
[362382039,1748237440952,-164.21677986,0.00019999,2]
[362382041,1748237440961,-420.0,0.00019999,2]
[362382043,1748237440973,-420.0,0.00019999,2]
[362382045,1748237440983,-420.0,0.00019999,2]
[362382047,1748237440992,-420.0,0.00019999,2]
[362382049,1748237441001,-420.0,0.00019999,2]
[362382051,1748237441011,-420.0,0.00019999,2]
[362382053,1748237441020,-420.0,0.00019999,2]
[362382055,1748237441030,-420.0,0.00019999,2]
[362382057,1748237441039,-420.0,0.00019999,2]
[362382058,1748237441050,-420.0,0.00019999,2]
[362382060,1748237441060,-420.0,0.00019999,2]
[362382062,1748237441069,-381.57400027,0.00019999,2]
[362382064,1748237441079,-420.0,0.00019999,2]
[362382066,1748237441088,-420.0,0.00019999,2]
[362382068,1748237441097,-420.0,0.00019999,2]
[362382070,1748237441106,-420.0,0.00019999,2]
[362382072,1748237441115,-420.0,0.00019999,2]
[362382074,1748237441124,-518.62,0.00019999,2]
[362382076,1748237441133,-500.0,0.00019999,2]
[362382078,1748237441142,-494.81019021,0.00019999,2]
[362382080,1748237441151,-472.73,0.00019999,2]
[362382082,1748237441160,-500.0,0.00019999,2]
[362382084,1748237441169,-500.0,0.00019999,2]
[362382085,1748237441178,-500.0,0.00019999,2]
[362382086,1748237441187,-500.0,0.00019999,2]
[362382087,1748237441196,-500.0,0.00019999,2]
[362382088,1748237441205,-500.0,0.00019999,2]
[362382089,1748237441214,-174.05282742,0.00019999,2]
[362382090,1748237441223,-411.81452674,0.00019999,2]
[362382091,1748237441232,-8271.24690171,0.00019999,2]
[362382092,1748237441241,-420.0,0.00019999,2]
[362382093,1748237441250,-420.0,0.00019999,2]
[362382094,1748237441261,-420.0,0.00019999,2]
[362382095,1748237441271,-420.0,0.00019999,2]
[362382096,1748237441282,-420.0,0.00019999,2]
[362382097,1748237441292,-503.7635892,0.00019999,2]
[362382098,1748237441302,-500.0,0.00019999,2]
[362382099,1748237441310,-294.39472862,0.00019999,2]
[362382100,1748237441320,-420.0,0.00019999,2]
[362382102,1748237441331,-420.0,0.00019999,2]
[362382104,1748237441340,-420.0,0.00019999,2]
[362382106,1748237441350,-420.0,0.00019999,2]
[362382108,1748237441359,-420.0,0.00019999,2]
[362382110,1748237441369,-420.0,0.00019999,2]
[362382112,1748237441380,-460.24522057,0.00019999,2]
[362382114,1748237441389,-420.0,0.00019999,2]
[362382116,1748237441399,-420.0,0.00019999,2]
[362382118,1748237441408,-420.0,0.00019999,2]
[362382120,1748237441417,-1577.0,0.00019999,2]
[362382122,1748237441426,-279.71252306,0.0002,2]
[362382124,1748237441435,-135152.79703538,0.0002,2]
[362382169,1748237441874,-362.31252204,0.0002,2]
[362382175,1748237441931,-1339.89560589,0.0002,2]
[362382177,1748237441946,-764.745945,0.0002,2]
[362382180,1748237441957,-5748.44960129,0.0002,2]
[362382182,1748237441973,-913.76378646,0.0002,2]
[362382184,1748237441994,-258726.8014967,0.0002,2]
[362382186,1748237442003,-521227.30771666,0.0002,2]
[362382189,1748237442016,-919.39818052,0.0002,2]
[362382315,1748237443484,-208.0,0.00017747,2]
[362382317,1748237443493,-262.67920823,0.00019871,2]
[362382568,1748237446175,-157.32079177,0.00019871,2]
[362382570,1748237446185,-68667.35863511,0.0002,2]
[362382577,1748237446235,-2292.4,0.0002,2]
[362382579,1748237446246,-2487.79861121,0.0002,2]
[362382581,1748237446257,-6561.53498233,0.0002,2]
[362382583,1748237446269,-1882.92225957,0.0002,2]
[362382586,1748237446281,-2144.26347189,0.0002,2]
[362382588,1748237446299,-13337.20131564,0.0002,2]
[362382591,1748237446310,-16228.40166667,0.0002,2]
[362382597,1748237446361,-2182.37150618,0.0002,2]
[362382599,1748237446372,-9635.0,0.0002,2]
[362382601,1748237446383,-5461.092,0.0002,2]
[362382603,1748237446394,-7146.49977808,0.0002,2]
[362382605,1748237446405,-688.08525818,0.0002,2]
[362382607,1748237446416,-1873.14887,0.0002,2]
[362382611,1748237446436,-3773.1478676,0.0002,2]
[362382613,1748237446447,-47352.93125225,0.0002,2]
[362382615,1748237446458,-286.72,0.0002,2]
[362382617,1748237446470,-922.20227986,0.0002,2]
[362382620,1748237446487,-619.76020313,0.0002,2]
[362382633,1748237446603,-1116.14335463,0.0002,2]
[362382640,1748237446663,-897.40698998,0.0002,2]
[362383039,1748237775654,201.95760766,0.0002739,120]
[362383041,1748237996845,288.49,0.00013699,2]
[362383044,1748238444299,1179.72,0.00016765,2]
[362383048,1748238631446,-200.0,0.0001851,2]
[362383049,1748238631456,-250.0,0.00018569,2]
[362383050,1748238631466,-200.0,0.00018569,2]
[362383051,1748238631475,-200.0,0.00018628,2]
[362383052,1748238631485,-695.73815394,0.00018725,2]
[362383053,1748238631498,-201.43325969,0.00018725,2]
[362383054,1748238631508,-250.0,0.00018725,2]
[362383055,1748238631519,-150.0,0.00018745,2]
[362383056,1748238631530,-200.0,0.00018752,2]
[362383057,1748238631542,-174.85958151,0.00018791,2]
[362383058,1748238631563,-45.82041849,0.00018791,2]
[362383059,1748238631573,-433.29815964,0.00018812,2]
[362383060,1748238631584,-4566.70184036,0.00018812,2]
[362383061,1748238631595,-273.48,0.00018845,2]
[362383062,1748238631605,-167.17,0.00018855,2]
[362383063,1748238631617,-200.0,0.0001891,2]
[362383064,1748238631626,-1200.0,0.00019027,2]
[362383065,1748238631637,-1179.72,0.00019028,2]
[362383066,1748238631650,-200.0,0.000191,2]
[362383067,1748238631659,-500.0,0.00019164,2]
[362383068,1748238631669,-158.279817,0.00019178,2]
[362383069,1748238631678,-158.279817,0.00019178,2]
[362383070,1748238631689,-157.366602,0.00019178,2]
[362383071,1748238631698,-160.138773,0.00019178,2]
[362383072,1748238631707,-156.587,0.00019178,2]
[362383073,1748238631717,-500.0,0.000192,7]
[362383074,1748238631726,-300.0,0.00019299,2]
[362383075,1748238631736,-1100.0,0.000193,7]
[362383076,1748238631745,-207.4,0.00019315,2]
[362383077,1748238631754,-1357.69,0.00019327,2]
[362383078,1748238631764,-1000.0,0.00019334,2]
[362383079,1748238631773,-158.279817,0.00019369,2]
[362383080,1748238631783,-150.0,0.00019369,2]
[362383081,1748238631792,-1600.0,0.000194,7]
[362383082,1748238631802,-150.0,0.00019498,2]
[362383083,1748238631811,-2200.0,0.000195,7]
[362383084,1748238631821,-200.0,0.0001951,2]
[362383085,1748238631830,-150.0,0.00019546,2]
[362383086,1748238631840,-150.0,0.00019573,2]
[362383088,1748238631854,-150.0,0.00019574,2]
[362383090,1748238631863,-460.13,0.00019589,2]
[362383092,1748238631873,-150.0,0.00019591,2]
[362383094,1748238631883,-356.589557,0.00019599,2]
[362383096,1748238631893,-450.50594609,0.000196,7]
[362383098,1748238631906,-519.86839141,0.000196,7]
[362383100,1748238631918,-833.42951108,0.000196,7]
[362383102,1748238631929,-896.19615142,0.000196,7]
[362383104,1748238631939,-152.0,0.00019676,3]
[362383105,1748238631949,-1034.38592492,0.000197,2]
[362383106,1748238631961,-947.61407508,0.000197,2]
[362383107,1748238631971,-500.0,0.000197,7]
[362383108,1748238631981,-4.75824052,0.00019709,2]
[362383118,1748238637400,-145.24175948,0.00019709,2]
[362383119,1748238637412,-158.279817,0.00019726,2]
[362383121,1748238637423,-157.366602,0.00019726,2]
[362383122,1748238637433,-286.83757408,0.00019726,2]
[362383123,1748238637511,-55.75242592,0.00019726,2]
[362383124,1748238637521,-151.0,0.00019788,2]
[362383125,1748238637532,-20000.0,0.000198,2]
[362383126,1748238637543,-500.0,0.000198,7]
[362383127,1748238637555,-250.33,0.0001981,2]
[362383128,1748238637564,-150.0,0.0001981,2]
[362383129,1748238637574,-150.0,0.00019835,2]
[362383130,1748238637583,-500.0,0.0001987,2]
[362383131,1748238637594,-500.0,0.0001987,2]
[362383132,1748238637605,-283.34003523,0.0001987,2]
[362383133,1748238637617,-292.36200568,0.0001987,2]
[362383134,1748238637627,-420.0,0.00019871,2]
[362383135,1748238637637,-500.0,0.00019871,2]
[362383136,1748238637646,-442.13225717,0.00019871,2]
[362383137,1748238637655,-420.0,0.00019871,2]
[362383138,1748238637666,-389.78425462,0.00019871,2]
[362383139,1748238637675,-500.02545587,0.00019871,2]
[362383140,1748238637687,-420.0,0.00019871,2]
[362383141,1748238637700,-420.0,0.00019871,2]
[362383142,1748238637709,-329.91852337,0.00019871,2]
[362383143,1748238637721,-90.08147663,0.00019871,2]
[362383144,1748238637731,-420.0,0.00019871,2]
[362383145,1748238637740,-182.22488947,0.00019871,2]
[362383146,1748238637753,-212.68524251,0.00019871,2]
[362383147,1748238637762,-270.82752676,0.00019871,2]
[362383148,1748238637771,-420.0,0.00019871,2]
[362383149,1748238637781,-420.0,0.00019871,2]
[362383150,1748238637790,-517.81715654,0.00019871,2]
[362383151,1748238637799,-432.31350606,0.00019871,2]
[362383152,1748238637809,-428.93068064,0.00019871,2]
[362383153,1748238637818,-445.78996382,0.00019871,2]
[362383154,1748238637828,-260.78237454,0.00019871,2]
[362383155,1748238637837,-420.0,0.00019871,2]
[362383157,1748238637847,-420.0,0.00019871,2]
[362383158,1748238637856,-420.0,0.00019871,2]
[362383159,1748238637866,-384.86827201,0.00019871,2]
[362383160,1748238637875,-437.46020382,0.00019871,2]
[362383161,1748238637885,-420.0,0.00019871,2]
[362383162,1748238637895,-427.18045898,0.00019871,2]
[362383163,1748238637905,-500.0,0.00019871,2]
[362383164,1748238637914,-420.0,0.00019871,2]
[362383165,1748238637923,-434.47766107,0.00019871,2]
[362383167,1748238637932,-428.25233487,0.00019871,2]
[362383168,1748238637942,-414.35939277,0.00019871,2]
[362383170,1748238637951,-398.16574508,0.00019871,2]
[362383171,1748238637961,-439.06090431,0.00019871,2]
[362383173,1748238637970,-447.9577405,0.00019871,2]
[362383174,1748238637980,-420.0,0.00019871,2]
[362383175,1748238637989,-648.12267154,0.00019871,2]
[362383176,1748238637999,-376.99,0.00019871,2]
[362383177,1748238638008,-303.92029762,0.00019871,2]
[362383178,1748238638018,-420.0,0.00019871,2]
[362383179,1748238638028,-632.7961,0.00019873,2]
[362383180,1748238638037,-227.1363,0.00019873,2]
[362383181,1748238638046,-271.0999,0.00019873,2]
[362383182,1748238638056,-2918.0956,0.00019873,2]
[362383183,1748238638065,-150.0,0.00019878,2]
[362383184,1748238638075,-158.279817,0.00019899,2]
[362383185,1748238638084,-158.279817,0.00019899,2]
[362383186,1748238638095,-157.366602,0.00019899,2]
[362383187,1748238638105,-1000.0,0.000199,2]
[362383188,1748238638114,-62778.31433752,0.000199,2]
[362383189,1748238638124,-500.0,0.000199,7]
[362383190,1748238638135,-57409.35546205,0.000199,2]
[362383191,1748238638144,-162.19272833,0.000199,2]
[362383192,1748238638154,-247.58305667,0.000199,2]
[362383193,1748238638163,-3095.89225182,0.000199,2]
[362383194,1748238638174,-1708.39,0.000199,2]
[362383195,1748238638185,-152.22144656,0.000199,2]
[362383196,1748238638195,-150.0,0.00019917,2]
[362383197,1748238638205,-160.138773,0.00019921,2]
[362383198,1748238638215,-150.0,0.0001994,2]
[362383199,1748238638225,-150.0,0.00019947,2]
[362383200,1748238638235,-435.54980128,0.00019973,2]
[362383201,1748238638245,-500.0,0.00019973,2]
[362383202,1748238638254,-398.48089186,0.00019973,2]
[362383203,1748238638264,-500.0,0.00019973,2]
[362383204,1748238638275,-500.0,0.0001998,2]
[362383205,1748238638285,-499.99,0.0001998,2]
[362383206,1748238638294,-500.0,0.0001998,2]
[362383207,1748238638304,-938.894,0.00019988,2]
[362383208,1748238638314,-183.02322995,0.00019988,2]
[362383209,1748238638323,-158.279817,0.00019989,2]
[362383210,1748238638337,-297.07502078,0.0001999,2]
[362383211,1748238638347,-297.07502078,0.0001999,2]
[362383212,1748238638356,-297.07502078,0.0001999,2]
[362383213,1748238638366,-158.279817,0.00019992,2]
[362383214,1748238638377,-157.366602,0.00019992,2]
[362383215,1748238638386,-158.279817,0.00019993,2]
[362383216,1748238638396,-420.0,0.00019993,2]
[362383217,1748238638408,-500.0,0.00019993,2]
[362383218,1748238638418,-500.0,0.00019993,2]
[362383219,1748238638427,-158.279817,0.00019994,2]
[362383220,1748238638437,-157.366602,0.00019994,2]
[362383221,1748238638448,-158.279817,0.00019997,2]
[362383222,1748238638457,-160.138773,0.00019998,2]
[362383223,1748238638467,-500.0,0.00019999,2]
[362383224,1748238638476,-468.76376098,0.00019999,2]
[362383225,1748238638486,-500.0,0.00019999,2]
[362383226,1748238638495,-190.59364237,0.00019999,2]
[362383227,1748238638505,-500.0,0.00019999,2]
[362383228,1748238638514,-500.0,0.00019999,2]
[362383229,1748238638524,-500.0,0.00019999,2]
[362383230,1748238638533,-239.50541061,0.00019999,2]
[362383231,1748238638543,-158.279817,0.00019999,2]
[362383232,1748238638552,-158.279817,0.00019999,2]
[362383233,1748238638562,-158.279817,0.00019999,2]
[362383234,1748238638571,-158.279817,0.00019999,2]
[362383235,1748238638581,-158.279817,0.00019999,2]
[362383236,1748238638589,-420.0,0.00019999,2]
[362383237,1748238638598,-420.0,0.00019999,2]
[362383238,1748238638607,-420.0,0.00019999,2]
[362383239,1748238638617,-422.63850911,0.00019999,2]
[362383240,1748238638626,-420.0,0.00019999,2]
[362383241,1748238638636,-420.0,0.00019999,2]
[362383242,1748238638645,-420.0,0.00019999,2]
[362383243,1748238638655,-518.62,0.00019999,2]
[362383244,1748238638664,-494.81019021,0.00019999,2]
[362383245,1748238638674,-472.73,0.00019999,2]
[362383246,1748238638683,-500.0,0.00019999,2]
[362383247,1748238638694,-500.0,0.00019999,2]
[362383248,1748238638704,-500.0,0.00019999,2]
[362383249,1748238638713,-500.0,0.00019999,2]
[362383250,1748238638723,-500.0,0.00019999,2]
[362383251,1748238638732,-174.05282742,0.00019999,2]
[362383252,1748238638741,-411.81452674,0.00019999,2]
[362383253,1748238638751,-157.366602,0.00019999,2]
[362383254,1748238638761,-157.366602,0.00019999,2]
[362383255,1748238638770,-420.0,0.00019999,2]
[362383256,1748238638780,-420.0,0.00019999,2]
[362383257,1748238638790,-420.0,0.00019999,2]
[362383258,1748238638800,-164.21677986,0.00019999,2]
[362383259,1748238638810,-342.86911917,0.00019999,2]
[362383260,1748238638824,-420.0,0.00019999,2]
[362383261,1748238638838,-443.44922869,0.00019999,2]
[362383262,1748238638851,-290.7,0.00019999,2]
[362383263,1748238638864,-263.59798469,0.00019999,2]
[362383264,1748238638876,-420.0,0.00019999,2]
[362383265,1748238638887,-420.0,0.00019999,2]
[362383266,1748238638899,-420.0,0.00019999,2]
[362383267,1748238638911,-420.0,0.00019999,2]
[362383268,1748238638923,-420.0,0.00019999,2]
[362383269,1748238638934,-503.7635892,0.00019999,2]
[362383270,1748238638946,-500.0,0.00019999,2]
[362383271,1748238638958,-420.0,0.00019999,2]
[362383272,1748238638970,-420.0,0.00019999,2]
[362383273,1748238638982,-420.0,0.00019999,2]
[362383274,1748238638994,-420.0,0.00019999,2]
[362383275,1748238639006,-420.0,0.00019999,2]
[362383276,1748238639019,-420.0,0.00019999,2]
[362383277,1748238639032,-420.0,0.00019999,2]
[362383278,1748238639044,-420.0,0.00019999,2]
[362383279,1748238639054,-420.0,0.00019999,2]
[362383280,1748238639064,-420.0,0.00019999,2]
[362383281,1748238639075,-420.0,0.00019999,2]
[362383282,1748238639087,-420.0,0.00019999,2]
[362383283,1748238639099,-381.57400027,0.00019999,2]
[362383284,1748238639110,-425.54716039,0.00019999,2]
[362383285,1748238639121,-436.96833602,0.00019999,2]
[362383286,1748238639133,-448.26066792,0.00019999,2]
[362383287,1748238639145,-569.25791759,0.00019999,2]
[362383288,1748238639156,-294.39472862,0.00019999,2]
[362383289,1748238639167,-420.0,0.00019999,2]
[362383290,1748238639179,-420.0,0.00019999,2]
[362383291,1748238639190,-420.0,0.00019999,2]
[362383292,1748238639203,-420.0,0.00019999,2]
[362383293,1748238639214,-420.0,0.00019999,2]
[362383294,1748238639227,-420.0,0.00019999,2]
[362383295,1748238639240,-460.24522057,0.00019999,2]
[362383296,1748238639252,-420.0,0.00019999,2]
[362383297,1748238639264,-420.0,0.00019999,2]
[362383298,1748238639277,-420.0,0.00019999,2]
[362383299,1748238639291,-420.0,0.00019999,2]
[362383300,1748238639304,-420.0,0.00019999,2]
[362383301,1748238639316,-420.0,0.00019999,2]
[362383302,1748238639332,-420.0,0.00019999,2]
[362383303,1748238639345,-420.0,0.00019999,2]
[362383304,1748238639356,-235.32244851,0.00019999,2]
[362383305,1748238639373,-432.98333033,0.00019999,2]
[362383306,1748238639387,-210.46197781,0.00019999,2]
[362383307,1748238639399,-448.26639161,0.00019999,2]
[362383308,1748238639412,-1577.0,0.00019999,2]
[362383309,1748238639424,-279.71252306,0.0002,2]
[362383310,1748238639436,-160182.40042522,0.0002,2]
[362383311,1748238639450,-381.59225543,0.0002,2]
[362383312,1748238639586,-237880.18958177,0.0002,2]
[362383313,1748238639597,-542073.91963159,0.0002,2]
[362383320,1748238642536,-1068.91205688,0.000199,2]
[362383321,1748238642548,-11748.73478422,0.0002,2]
[362383322,1748238642562,-1850.7145572,0.0002,2]
[362383323,1748238642593,-5376.445856,0.0002,2]
[362383324,1748238642652,-841.09078813,0.0002,2]
[362383325,1748238642665,-735.915,0.0002,2]
[362383326,1748238642710,-17439.19300254,0.0002,2]
[362383327,1748238642723,-11178.74776248,0.0002,2]
[362383328,1748238642736,-556.3898016,0.0002,2]
[362383329,1748238642769,-785.15672948,0.0002,2]
[362383330,1748238642782,-300.42878841,0.0002,2]
[362383331,1748238642795,-20389.22817023,0.0002,2]
[362383332,1748238642808,-474.22718625,0.0002,2]
[362383333,1748238642833,-727.93842349,0.0002,2]
[362383334,1748238642846,-8336.31930342,0.0002,2]
[362383348,1748238645480,-420.0,0.00019999,2]
[362383349,1748238645492,-3658.36443052,0.0002,2]
[362383350,1748238645507,-28375.40521399,0.0002,2]
[362383351,1748238645545,-921.62346465,0.0002,2]
[362383352,1748238645559,-6348.68,0.0002,2]
[362383353,1748238645602,-518.04777804,0.0002,2]
[362383354,1748238645618,-478.59063244,0.0002,2]
[362383355,1748238645662,-1484.73048015,0.0002,2]
[362383356,1748238645676,-1107.66246026,0.0002,2]
[362383357,1748238645691,-282.78234949,0.0002,2]
[362383358,1748238645721,-314.25497846,0.0002,2]
[362383359,1748238645783,-470.17110742,0.0002,2]
[362383360,1748238645796,-669.0,0.0002,2]
[362383361,1748238645810,-914.60609261,0.0002,2]
[362383362,1748238645847,-323.57617519,0.0002,2]
[362383365,1748238771422,250.0,0.00015,2]
[362383366,1748238772499,300.0,0.00017,2]
[362383367,1748239011447,1000.0,0.00027397,120]
[362383368,1748239168280,281.9,0.00013699,2]
[362383369,1748239183358,-150.0,0.000274,120]
[362383370,1748239590354,99850.0,0.000274,120]
[362383371,1748239594401,1061.74,0.00016173,2]
[362383372,1748239689445,308636.75,0.00027397,120]
[362383373,1748239715448,1849.26,0.00027397,120]
[362383374,1748239831766,-152.86,0.00018273,2]
[362383375,1748239831778,-250.0,0.0001843,2]
[362383376,1748239831787,-141.16,0.00018437,2]
[362383377,1748239831824,-400.0,0.00018437,2]
[362383378,1748239831937,-520.58,0.00018437,2]
[362383379,1748239831947,-166.12,0.00018565,2]
[362383380,1748239831957,-158.58057796,0.0001859,2]
[362383381,1748239831966,-255.55,0.00018685,2]
[362383382,1748239831975,-255.55,0.0001869,2]
[362383383,1748239831985,-255.55,0.00018695,2]
[362383384,1748239831994,-255.55,0.000187,2]
[362383385,1748239832004,-255.55,0.00018705,2]
[362383386,1748239832014,-255.55,0.0001871,2]
[362383387,1748239832023,-255.55,0.00018715,2]
[362383388,1748239832034,-255.55,0.0001872,2]
[362383389,1748239832044,-255.55,0.00018724,2]
[362383390,1748239832067,-255.55,0.00018729,2]
[362383391,1748239832077,-255.55,0.00018734,2]
[362383392,1748239832350,-255.55,0.00018739,2]
[362383394,1748239832360,-255.55,0.00018744,2]
[362383396,1748239832369,-158.58057794,0.00018745,2]
[362383398,1748239832379,-255.55,0.00018749,2]
[362383400,1748239832388,-255.55,0.00018754,2]
[362383402,1748239832397,-255.55,0.00018759,2]
[362383404,1748239832407,-255.55,0.00018764,2]